bitfinex/quotes_SOLUSD_20250506
["timestamp","ask_amount","ask_price","bid_price","bid_amount"]
[1746500220770,164.5,144.82,144.79,14.67559338]
[1746500221154,171.40542916,144.82,144.79,14.67559338]
[1746500221334,18.64964886,144.81,144.77,13.7]
[1746500221540,138.5,144.8,144.77,28.37559338]
[1746500222741,18.64964886,144.79,144.77,13.7]
[1746500223374,25.55651313,144.79,144.77,13.7]
[1746500224240,18.64964886,144.79,144.78,14.67559338]
[1746500226850,18.64964886,144.79,144.77,28.37559338]
[1746500228950,40.23197565,144.79,144.77,13.7]
[1746500230676,25.55638227,144.79,144.77,13.7]
[1746500233477,138.5,144.78,144.77,13.7]
[1746500233677,25.55638227,144.79,144.77,13.7]
[1746500236094,14.81775495,144.78,144.77,13.7]
[1746500236390,0.14216157,144.76,144.73,13.7]
[1746500236556,0.14216157,144.76,144.73,28.37559338]
[1746500236876,33.32524224,144.78,144.74,14.67559338]
[1746500238276,25.55684333,144.78,144.74,14.67559338]
[1746500240082,138.5,144.75,144.74,14.67559338]
[1746500240688,138.5,144.75,144.73,13.7]
[1746500240862,138.5,144.75,144.74,14.67559338]
[1746500244095,138.5,144.75,144.74,21.58453354]
[1746500250993,138.5,144.79,144.74,21.58453354]
[1746500251183,18.64964886,144.78,144.73,20.60928227]
[1746500251389,18.64964886,144.78,144.75,14.67559338]
[1746500253400,25.55683434,144.78,144.75,14.67559338]
[1746500254312,25.55683434,144.78,144.76,14.67559338]
[1746500254493,157.14964886,144.77,144.76,14.67559338]
[1746500255180,157.14964886,144.77,144.75,14.67559338]
[1746500257275,157.14964886,144.77,144.76,14.67559338]
[1746500257787,157.14964886,144.77,144.75,14.67559338]
[1746500260403,157.14964886,144.76,144.73,13.7]
[1746500260603,171.82524224,144.76,144.73,13.7]
[1746500260786,18.64964886,144.74,144.73,13.7]
[1746500261491,33.46740381,144.74,144.67,237.58]
[1746500261687,18.64964886,144.71,144.68,13.68]
[1746500262003,18.64964886,144.71,144.68,28.35559338]
[1746500262311,33.32524224,144.71,144.68,13.68]
[1746500262481,14.81775495,144.7,144.67,251.26]
[1746500262800,14.81775495,144.7,144.67,13.68]
[1746500263204,33.32524224,144.69,144.67,13.68]
[1746500264904,40.23686168,144.69,144.67,13.68]
[1746500265202,25.5612683,144.69,144.67,13.68]
[1746500266601,138.5,144.68,144.67,13.68]
[1746500266813,25.5612683,144.69,144.67,13.68]
[1746500271789,40.23686168,144.69,144.67,13.68]
[1746500272015,26.14216157,144.68,144.67,13.68]
[1746500272323,18.64964886,144.67,144.64,14.67559338]
[1746500272688,0.14216157,144.66,144.63,28.37559338]
[1746500272887,14.81775495,144.66,144.63,13.7]
[1746500273315,33.32524224,144.65,144.63,13.7]
[1746500273810,0.14216157,144.64,144.63,13.7]
[1746500274009,25.39481043,144.64,144.63,13.7]
[1746500274604,40.07040381,144.64,144.61,13.7]
[1746500275612,46.98421958,144.64,144.61,13.7]
[1746500278394,32.3086262,144.64,144.61,28.37559338]
[1746500278600,18.64964886,144.62,144.61,28.37559338]
[1746500279020,18.64964886,144.63,144.61,28.37559338]
[1746500279619,32.30854172,144.64,144.61,28.37559338]
[1746500279793,18.64964886,144.63,144.61,28.37559338]
[1746500280915,26.0,144.65,144.62,14.67559338]
[1746500281120,157.14964886,144.64,144.61,20.61511385]
[1746500281308,157.14964886,144.64,144.63,14.67559338]
[1746500281832,138.5,144.64,144.63,14.67559338]
[1746500282416,157.14964886,144.67,144.63,14.67559338]
[1746500282593,157.14964886,144.67,144.66,14.67559338]
[1746500282793,157.14964886,144.67,144.66,28.37559338]
[1746500285431,157.14964886,144.67,144.66,13.7]
[1746500290616,18.64964886,144.67,144.66,13.7]
[1746500291425,18.64964886,144.68,144.66,28.37559338]
[1746500292531,18.64964886,144.68,144.66,13.7]
[1746500292736,18.64964886,144.68,144.66,28.37559338]
[1746500294727,18.64964886,144.68,144.66,35.28814262]
[1746500294908,18.64964886,144.68,144.67,14.67559338]
[1746500296431,157.14964886,144.68,144.67,14.67559338]
[1746500296620,157.14964886,144.68,144.67,21.5878765]
[1746500296819,138.5,144.68,144.67,21.5878765]
[1746500297713,157.14964886,144.7,144.67,21.5878765]
[1746500298028,138.5,144.7,144.69,14.67559338]
[1746500299140,164.5,144.71,144.69,14.67559338]
[1746500302821,164.5,144.71,144.68,14.67559338]
[1746500306638,164.5,144.71,144.69,14.67559338]
[1746500306867,138.5,144.71,144.7,14.67559338]
[1746500307139,18.64964886,144.71,144.7,14.67559338]
[1746500308235,18.64964886,144.71,144.69,14.67559338]
[1746500310438,33.32524224,144.7,144.66,13.7]
[1746500310659,18.64964886,144.68,144.66,13.7]
[1746500311150,18.64964886,144.68,144.66,28.37559338]
[1746500312741,18.64964886,144.68,144.66,13.7]
[1746500312928,18.64964886,144.68,144.67,14.67559338]
[1746500313127,18.64964886,144.68,144.66,28.37559338]
[1746500313528,25.56150629,144.68,144.66,13.7]
[1746500314251,157.14964886,144.67,144.66,13.7]
[1746500314456,18.64964886,144.67,144.66,13.7]
[1746500314656,25.56193198,144.67,144.66,13.7]
[1746500314858,40.37968693,144.67,144.66,13.7]
[1746500315841,40.37968693,144.67,144.63,14.67559338]
[1746500316151,18.64964886,144.65,144.63,28.35559338]
[1746500316449,40.23859492,144.65,144.63,13.68]
[1746500316956,18.64964886,144.65,144.63,13.68]
[1746500317151,18.64964886,144.65,144.63,28.35559338]
[1746500319356,18.64964886,144.65,144.64,14.67559338]
[1746500319548,138.5,144.66,144.64,14.67559338]
[1746500319756,138.5,144.66,144.65,14.67559338]
[1746500321956,138.5,144.66,144.64,14.67559338]
[1746500325057,138.5,144.66,144.65,14.67559338]
[1746500328461,138.5,144.66,144.65,28.35559338]
[1746500330168,138.5,144.66,144.65,13.68]
[1746500330343,164.06240981,144.66,144.65,13.68]
[1746500330539,40.38016476,144.66,144.65,13.68]
[1746500330871,0.14216157,144.64,144.61,13.68]
[1746500331049,18.64964886,144.62,144.61,13.68]
[1746500331857,18.64964886,144.63,144.61,13.68]
[1746500332446,25.56398317,144.63,144.61,13.68]
[1746500333068,40.23957655,144.63,144.61,13.68]
[1746500334349,40.38207674,144.62,144.61,13.68]
[1746500335043,66.38207674,144.62,144.61,13.68]
[1746500335956,0.14216157,144.6,144.58,237.74]
[1746500336269,21.7334472,144.6,144.58,237.74]
[1746500336650,33.32524224,144.59,144.57,13.68]
[1746500337046,18.64964886,144.59,144.57,13.68]
[1746500337762,0.14216157,144.6,144.58,14.67559338]
[1746500337969,18.79181043,144.6,144.58,14.67559338]
[1746500339372,0.14216157,144.61,144.59,14.67559338]
[1746500339554,18.79181043,144.61,144.59,14.67559338]
[1746500339867,18.64964886,144.61,144.6,14.67559338]
[1746500340058,18.64964886,144.61,144.59,14.67559338]
[1746500341754,18.64964886,144.61,144.59,21.59158871]
[1746500341961,18.64964886,144.63,144.6,14.67559338]
[1746500342183,18.64964886,144.63,144.59,6.91599533]
[1746500342184,18.64964886,144.63,144.61,14.67559338]
[1746500342573,6.0544,144.65,144.62,28.35559338]
[1746500342875,18.64964886,144.64,144.62,28.35559338]
[1746500343680,18.64964886,144.64,144.62,13.68]
[1746500345673,25.56350187,144.64,144.62,13.68]
[1746500346972,18.64964886,144.64,144.62,13.68]
[1746500347572,18.64964886,144.64,144.62,28.35559338]
[1746500347866,18.64964886,144.65,144.63,14.67559338]
[1746500348276,44.64964886,144.68,144.64,14.67559338]
[1746500348669,59.32524224,144.68,144.64,14.67559338]
[1746500348857,44.64964886,144.68,144.64,14.67559338]
[1746500349058,44.64964886,144.68,144.62,20.59451154]
[1746500349255,44.64964886,144.68,144.64,21.58920387]
[1746500349467,44.64964886,144.68,144.66,14.67559338]
[1746500350283,44.64964886,144.68,144.65,14.67559338]
[1746500352290,66.23708578,144.68,144.64,14.67559338]
[1746500352591,18.64964886,144.66,144.63,14.67559338]
[1746500353591,138.5,144.64,144.63,14.67559338]
[1746500354187,138.5,144.64,144.62,13.68]
[1746500354385,157.14964886,144.63,144.62,13.68]
[1746500354589,18.64964886,144.63,144.62,13.68]
[1746500355677,25.70600527,144.63,144.62,13.68]
[1746500355893,40.38159865,144.63,144.62,13.68]
[1746500356073,26.0,144.65,144.62,28.35559338]
[1746500356278,18.64964886,144.64,144.63,14.67559338]
[1746500357277,18.64964886,144.64,144.62,35.27025163]
[1746500357991,0.14216157,144.67,144.63,14.67559338]
[1746500358196,18.79181043,144.67,144.64,14.67559338]
[1746500359083,18.64964886,144.65,144.64,14.67559338]
[1746500359999,18.64964886,144.65,144.64,21.58931019]
[1746500361875,18.64964886,144.65,144.64,6.91371681]
[1746500363097,18.64964886,144.65,144.63,21.58958099]
[1746500363279,18.64964886,144.65,144.63,6.91398761]
[1746500363986,18.64964886,144.65,144.63,21.58958099]
[1746500367495,18.64964886,144.65,144.63,6.91398761]
[1746500372292,18.64964886,144.65,144.63,20.59398761]
[1746500376416,18.64964886,144.65,144.63,35.26958099]
[1746500376797,138.5,144.66,144.64,14.67559338]
[1746500377095,138.5,144.66,144.65,14.67559338]
[1746500377900,138.5,144.66,144.65,21.58883223]
[1746500385119,138.5,144.66,144.65,6.91323885]
[1746500385426,138.5,144.66,144.65,14.67559338]
[1746500386601,138.5,144.66,144.65,21.58883223]
[1746500387503,138.5,144.71,144.65,53.54752274]
[1746500387722,138.5,144.74,144.7,14.67559338]
[1746500388020,157.14964886,144.74,144.73,14.67559338]
[1746500388198,138.5,144.74,144.73,14.67559338]
[1746500390329,18.64964886,144.73,144.71,13.68]
[1746500392431,18.64964886,144.73,144.71,28.35559338]
[1746500392605,18.64964886,144.73,144.71,35.26594766]
[1746500392804,18.64964886,144.73,144.72,14.67559338]
[1746500393323,138.5,144.74,144.72,14.67559338]
[1746500393529,138.5,144.74,144.73,14.67559338]
[1746500393914,138.5,144.74,144.72,14.67559338]
[1746500397932,157.14964886,144.74,144.73,14.67559338]
[1746500398235,138.5,144.74,144.73,14.67559338]
[1746500399420,138.5,144.74,144.71,20.59018895]
[1746500399620,138.5,144.74,144.72,14.67559338]
[1746500399833,18.64964886,144.73,144.71,28.35559338]
[1746500400131,18.64964886,144.73,144.7,14.67559338]
[1746500400327,18.64964886,144.73,144.71,13.66]
[1746500400832,138.5,144.72,144.71,13.66]
[1746500404445,18.64964886,144.73,144.71,13.66]
[1746500404851,138.5,144.75,144.72,14.67559338]
[1746500405141,18.64964886,144.74,144.73,14.67559338]
[1746500405323,18.64964886,144.74,144.72,14.67559338]
[1746500406125,18.64964886,144.74,144.71,35.24586909]
[1746500406632,18.64964886,144.74,144.71,28.33559338]
[1746500406940,25.55860216,144.74,144.71,13.66]
[1746500407244,14.67559338,144.72,144.71,13.66]
[1746500407546,33.46740381,144.72,144.71,13.66]
[1746500409525,40.37729877,144.72,144.71,13.66]
[1746500411840,40.37729877,144.72,144.68,14.67559338]
[1746500412138,18.64964886,144.7,144.68,28.33559338]
[1746500415036,18.64964886,144.7,144.68,14.67559338]
[1746500415217,18.64964886,144.7,144.68,35.24739227]
[1746500415732,18.64964886,144.7,144.68,21.58739227]
[1746500416135,18.64964886,144.7,144.68,35.24739227]
[1746500417147,18.64964886,144.7,144.68,21.58739227]
[1746500417339,18.64964886,144.7,144.68,35.24739227]
[1746500417936,18.64964886,144.7,144.68,21.58739227]
[1746500418134,18.64964886,144.7,144.68,35.24739227]
[1746500418455,18.64964886,144.7,144.68,21.58739227]
[1746500418740,18.64964886,144.7,144.68,35.24739227]
[1746500419247,18.64964886,144.7,144.68,21.58739227]
[1746500419459,18.64964886,144.7,144.68,35.24739227]
[1746500426151,138.5,144.69,144.68,13.66]
[1746500426355,157.14964886,144.69,144.68,13.66]
[1746500426533,138.5,144.69,144.68,35.24739874]
[1746500427850,138.5,144.69,144.68,49.92299212]
[1746500428048,157.14964886,144.74,144.68,67.20250552]
[1746500428250,157.14964886,144.74,144.73,14.67559338]
[1746500428551,157.14964886,144.74,144.73,28.33559338]
[1746500430653,0.14216157,144.74,144.73,13.66]
[1746500430832,0.14216157,144.72,144.69,13.66]
[1746500431040,18.64964886,144.7,144.69,13.66]
[1746500432145,138.5,144.71,144.69,35.24665573]
[1746500432657,138.5,144.71,144.69,28.33559338]
[1746500433658,18.64964886,144.7,144.69,13.66]
[1746500436053,14.67559338,144.72,144.69,13.66]
[1746500436262,33.32524224,144.72,144.69,13.66]
[1746500436743,18.64964886,144.7,144.69,13.66]
[1746500437564,18.79181043,144.72,144.69,13.66]
[1746500437860,33.46740381,144.72,144.69,13.66]
[1746500438034,18.64964886,144.7,144.69,13.66]
[1746500442670,14.81775495,144.7,144.69,13.66]
[1746500442852,40.37825384,144.7,144.66,14.67559338]
[1746500443339,40.37825384,144.7,144.66,28.33559338]
[1746500444056,40.37825384,144.7,144.66,14.67559338]
[1746500444363,40.37825384,144.7,144.66,28.33559338]
[1746500444748,40.37825384,144.7,144.66,14.67559338]
[1746500445366,40.37825384,144.7,144.66,28.33559338]
[1746500446268,40.37825384,144.7,144.66,14.67559338]
[1746500446476,18.64964886,144.68,144.66,28.33559338]
[1746500446657,18.64964886,144.68,144.66,14.67559338]
[1746500446843,18.64964886,144.68,144.66,28.33559338]
[1746500447168,18.64964886,144.68,144.66,14.67559338]
[1746500447367,18.64964886,144.68,144.66,28.33559338]
[1746500451167,18.64964886,144.68,144.66,13.66]
[1746500451766,25.56148487,144.68,144.66,13.66]
[1746500452068,18.64964886,144.68,144.66,13.66]
[1746500452570,157.14964886,144.67,144.66,13.66]
[1746500454771,164.06193198,144.67,144.66,13.66]
[1746500455066,157.14964886,144.67,144.66,13.66]
[1746500458577,18.64964886,144.67,144.66,13.66]
[1746500465459,40.37968693,144.67,144.66,13.66]
[1746500465671,18.79181043,144.66,144.62,13.66]
[1746500465982,14.81775495,144.66,144.62,28.33559338]
[1746500466168,33.46740381,144.66,144.62,28.33559338]
[1746500466773,40.38027414,144.66,144.62,28.33559338]
[1746500469176,40.38027414,144.66,144.62,13.66]
[1746500469677,33.46740381,144.66,144.62,13.66]
[1746500470482,18.64964886,144.64,144.62,13.66]
[1746500470803,18.64964886,144.64,144.62,28.33559338]
[1746500470954,18.64964886,144.64,144.62,35.25023598]
[1746500472094,18.64964886,144.64,144.63,14.67559338]
[1746500472256,138.5,144.65,144.63,21.58978822]
[1746500472456,138.5,144.65,144.64,14.67559338]
[1746500473381,138.5,144.65,144.64,21.58931019]
[1746500481388,18.64964886,144.68,144.64,38.87360222]
[1746500481389,138.5,144.68,144.64,38.87360222]
[1746500481568,138.5,144.68,144.67,14.67559338]
[1746500481885,138.5,144.68,144.67,28.33559338]
[1746500482886,138.5,144.68,144.67,35.2478765]
[1746500485476,138.5,144.68,144.67,28.33559338]
[1746500485669,157.14964886,144.68,144.67,13.66]
[1746500486085,40.37920917,144.68,144.67,13.66]
[1746500487091,18.64964886,144.68,144.67,13.66]
[1746500487272,18.64964886,144.71,144.67,28.33559338]
[1746500487471,18.64964886,144.71,144.7,14.67559338]
[1746500488393,6.9081124,144.76,144.7,14.67559338]
[1746500488575,18.64964886,144.75,144.72,14.67559338]
[1746500488774,18.64964886,144.75,144.72,28.31559338]
[1746500491190,33.32524224,144.75,144.72,28.31559338]
[1746500491795,33.32524224,144.75,144.72,13.64]
[1746500493404,0.14216157,144.74,144.72,13.64]
[1746500493573,14.67559338,144.73,144.72,13.64]
[1746500494996,7.0513242,144.74,144.72,13.64]
[1746500495199,0.14216157,144.74,144.72,13.64]
[1746500497293,18.64964886,144.75,144.72,28.31559338]
[1746500500408,0.14216157,144.74,144.72,13.64]
[1746500500612,14.67559338,144.73,144.72,13.64]
[1746500501980,21.72682029,144.74,144.72,13.64]
[1746500502182,33.32524224,144.75,144.72,13.64]
[1746500502490,18.64964886,144.75,144.72,13.64]
[1746500502691,33.32524224,144.75,144.72,13.64]
[1746500502895,40.23371448,144.75,144.72,13.64]
[1746500503205,25.5581211,144.75,144.72,13.64]
[1746500503386,40.23371448,144.75,144.72,13.64]
[1746500504100,18.64964886,144.73,144.72,13.64]
[1746500512303,33.32524224,144.73,144.72,13.64]
[1746500512604,18.64964886,144.73,144.72,13.64]
[1746500514314,25.55906639,144.73,144.72,13.64]
[1746500514507,40.23465977,144.73,144.72,13.64]
[1746500515419,138.5,144.72,144.7,28.31559338]
[1746500518316,157.14964886,144.72,144.71,14.67559338]
[1746500518518,157.14964886,144.72,144.7,28.31559338]
[1746500519119,138.5,144.72,144.71,14.67559338]
[1746500525027,138.5,144.72,144.71,28.31559338]
[1746500528942,157.14964886,144.72,144.71,13.64]
[1746500539359,138.5,144.72,144.71,28.31559338]
[1746500539761,138.5,144.72,144.71,29.98149467]
[1746500541777,138.5,144.72,144.71,35.28469839]
[1746500545479,157.14964886,144.76,144.71,35.28469839]
[1746500545671,157.14964886,144.76,144.74,14.73432593]
[1746500546863,14.73432593,144.75,144.71,35.28469839]
[1746500547277,171.88397479,144.76,144.72,14.73432593]
[1746500548093,157.14964886,144.76,144.73,14.73432593]
[1746500551397,138.5,144.75,144.73,21.64372634]
[1746500551584,138.5,144.75,144.74,14.73432593]
[1746500552893,138.5,144.75,144.74,21.64326609]
[1746500557500,18.64964886,144.78,144.74,21.64326609]
[1746500557691,18.64964886,144.78,144.76,14.73432593]
[1746500557891,18.64964886,144.78,144.77,13.64]
[1746500559225,18.64964886,144.78,144.77,28.37432593]
[1746500560306,18.64964886,144.78,144.77,13.64]
[1746500560622,33.38397479,144.78,144.77,13.64]
[1746500560928,0.14216157,144.77,144.74,13.64]
[1746500561127,14.73432593,144.75,144.74,13.64]
[1746500561297,46.46799922,144.75,144.74,13.64]
[1746500561500,18.79181043,144.74,144.7,251.26]
[1746500561719,18.64964886,144.72,144.7,251.26]
[1746500564324,18.64964886,144.72,144.7,13.64]
[1746500565422,157.14964886,144.71,144.7,13.64]
[1746500565808,172.02613636,144.71,144.7,13.64]
[1746500566127,157.29181043,144.7,144.67,13.64]
[1746500566313,18.64964886,144.68,144.67,13.64]
[1746500567331,138.5,144.69,144.67,28.37432593]
[1746500567638,138.5,144.69,144.68,14.73432593]
[1746500569732,18.64964886,144.68,144.67,13.64]
[1746500570036,138.5,144.67,144.66,13.64]
[1746500570334,33.38397479,144.68,144.66,13.64]
[1746500570630,18.79181043,144.68,144.66,13.64]
[1746500570928,18.79181043,144.69,144.66,28.37432593]
[1746500575017,40.43753728,144.69,144.66,13.64]
[1746500579239,14.73432593,144.68,144.66,13.64]
[1746500581047,40.43753728,144.69,144.66,13.64]
[1746500585646,25.70321135,144.69,144.66,13.64]
[1746500585841,40.43753728,144.69,144.66,13.64]
[1746500589050,14.73432593,144.68,144.66,13.64]
[1746500594554,14.8764875,144.69,144.66,13.64]
[1746500594748,18.79181043,144.69,144.66,28.37432593]
[1746500595057,33.52613636,144.69,144.66,13.64]
[1746500595749,28.2320937,144.69,144.66,13.64]
[1746500595959,35.14346882,144.69,144.66,13.64]
[1746500598470,28.2320937,144.69,144.66,13.64]
[1746500599586,9.44028327,144.67,144.66,13.64]
[1746500599769,18.79181043,144.66,144.59,6.91610761]
[1746500599944,28.08993213,144.62,144.61,13.64]
[1746500601260,32.91228312,144.67,144.61,23.08028327]
[1746500601560,18.64964886,144.68,144.66,9.44028327]
[1746500601858,18.64964886,144.68,144.66,14.74984083]
[1746500605876,18.64964886,144.68,144.65,28.38984083]
[1746500610983,18.64964886,144.68,144.65,35.30307502]
[1746500611387,138.5,144.66,144.65,35.30307502]
[1746500613688,138.5,144.66,144.65,13.64]
[1746500615890,138.5,144.69,144.65,35.30260207]
[1746500616189,138.5,144.69,144.67,14.74984083]
[1746500616758,157.14964886,144.69,144.68,14.74984083]
[1746500618402,157.14964886,144.69,144.66,6.91276095]
[1746500618703,18.64964886,144.68,144.66,14.74984083]
[1746500618881,18.64964886,144.68,144.65,35.30294772]
[1746500619195,18.64964886,144.68,144.66,14.74984083]
[1746500620305,18.64964886,144.68,144.65,20.55310689]
[1746500620479,18.64964886,144.68,144.66,14.74984083]
[1746500623700,18.64964886,144.68,144.65,35.30294772]
[1746500625779,25.56150973,144.68,144.65,28.38984083]
[1746500626320,18.64964886,144.68,144.65,28.38984083]
[1746500626497,138.5,144.67,144.65,13.64]
[1746500630814,138.5,144.67,144.65,28.38984083]
[1746500638531,138.5,144.67,144.65,13.64]
[1746500638736,157.14964886,144.66,144.65,13.64]
[1746500639404,157.14964886,144.66,144.64,14.74984083]
[1746500639605,157.14964886,144.66,144.65,13.62]
[1746500640827,157.14964886,144.66,144.64,14.74984083]
[1746500641036,157.14964886,144.66,144.64,28.36984083]
[1746500641842,138.5,144.66,144.65,14.74984083]
[1746500646937,157.14964886,144.66,144.64,28.36984083]
[1746500648332,157.14964886,144.66,144.64,13.62]
[1746500648648,157.14964886,144.66,144.64,28.36984083]
[1746500649625,157.14964886,144.66,144.64,13.62]
[1746500649837,157.14964886,144.66,144.64,28.36984083]
[1746500650519,157.14964886,144.65,144.64,13.62]
[1746500650720,18.64964886,144.65,144.64,13.62]
[1746500652441,40.31272854,144.65,144.64,13.62]
[1746500652941,40.45489011,144.65,144.64,13.62]
[1746500654042,0.14216157,144.64,144.58,6.91655389]
[1746500654350,25.56470503,144.62,144.59,13.62]
[1746500654534,25.56470503,144.62,144.59,28.36984083]
[1746500654841,40.31454586,144.62,144.59,13.62]
[1746500655228,18.64964886,144.6,144.58,13.62]
[1746500656648,11.64964886,144.6,144.58,13.62]
[1746500657351,18.56530188,144.6,144.58,13.62]
[1746500659329,157.14964886,144.59,144.58,13.62]
[1746500671260,157.14964886,144.59,144.58,28.36984083]
[1746500671765,157.14964886,144.59,144.58,23.07082815]
[1746500672261,157.14964886,144.59,144.58,13.62]
[1746500672262,164.06575647,144.59,144.58,13.62]
[1746500672645,25.70791804,144.59,144.58,13.62]
[1746500673772,40.47886341,144.59,144.58,13.62]
[1746500674058,0.14216157,144.57,144.54,13.62]
[1746500674265,18.64964886,144.55,144.54,13.62]
[1746500676555,25.70983187,144.55,144.54,13.62]
[1746500678689,25.70983187,144.55,144.52,14.77094537]
[1746500678866,25.70983187,144.55,144.52,28.39094537]
[1746500679491,25.70983187,144.55,144.52,13.62]
[1746500679791,25.70983187,144.55,144.52,28.39094537]
[1746500680588,40.48077724,144.55,144.52,28.39094537]
[1746500681291,25.70983187,144.55,144.52,28.39094537]
[1746500683081,25.70983187,144.55,144.52,13.62]
[1746500683487,40.48077724,144.55,144.52,13.62]
[1746500683875,25.70983187,144.55,144.52,28.39094537]
[1746500686293,18.79181043,144.55,144.52,28.39094537]
[1746500686491,18.64964886,144.53,144.52,28.39094537]
[1746500693787,18.64964886,144.53,144.52,23.07791784]
[1746500694709,18.64964886,144.53,144.52,13.62]
[1746500694899,35.16870702,144.53,144.52,13.62]
[1746500696202,18.64964886,144.53,144.52,13.62]
[1746500696697,18.64964886,144.53,144.52,23.07791784]
[1746500701373,18.64964886,144.53,144.52,13.62]
[1746500701776,25.71078918,144.53,144.52,13.62]
[1746500701976,35.16870702,144.53,144.52,13.62]
[1746500703187,0.14216157,144.52,144.48,23.07791784]
[1746500703388,18.64964886,144.5,144.48,23.07791784]
[1746500703990,18.64964886,144.48,144.45,13.62]
[1746500704188,18.64964886,144.46,144.45,13.62]
[1746500704585,18.64964886,144.46,144.45,23.07791784]
[1746500705295,138.5,144.47,144.45,23.07791784]
[1746500705502,157.14964886,144.47,144.46,9.45791784]
[1746500705698,157.14964886,144.47,144.46,14.78891033]
[1746500706592,138.5,144.47,144.46,14.78891033]
[1746500707883,138.5,144.47,144.46,21.71124177]
[1746500713586,138.5,144.47,144.46,6.92233144]
[1746500713905,138.5,144.47,144.46,21.71124177]
[1746500721041,138.5,144.47,144.46,6.92233144]
[1746500721317,138.5,144.47,144.46,14.78891033]
[1746500721690,157.14964886,144.47,144.46,14.78891033]
[1746500721887,157.14964886,144.47,144.45,28.40891033]
[1746500723095,157.14964886,144.47,144.46,14.78891033]
[1746500725792,138.5,144.47,144.46,21.71124177]
[1746500728221,157.14964886,144.52,144.46,39.01707037]
[1746500728400,138.5,144.51,144.46,24.22816004]
[1746500728601,157.14964886,144.51,144.5,14.78891033]
[1746500728901,157.14964886,144.51,144.5,28.40891033]
[1746500729218,157.14964886,144.51,144.5,13.62]
[1746500729405,157.14964886,144.51,144.5,28.40891033]
[1746500736526,157.14964886,144.51,144.5,35.32932555]
[1746500736702,138.5,144.51,144.5,35.32932555]
[1746500737919,138.5,144.55,144.5,52.63036361]
[1746500738106,44.79181043,144.57,144.54,14.78891033]
[1746500738305,157.14964886,144.55,144.54,14.78891033]
[1746500741829,157.14964886,144.55,144.52,6.91933001]
[1746500742011,157.14964886,144.55,144.53,14.78891033]
[1746500745328,138.5,144.55,144.53,6.9189633]
[1746500745532,138.5,144.55,144.54,14.78891033]
[1746500746733,138.5,144.55,144.53,6.9189633]
[1746500746918,138.5,144.55,144.54,14.78891033]
[1746500747541,138.5,144.55,144.54,21.70741039]
[1746500747748,18.64964886,144.6,144.54,36.49632072]
[1746500747910,138.5,144.61,144.59,14.78891033]
[1746500748109,138.5,144.61,144.6,28.40891033]
[1746500748325,138.5,144.61,144.6,14.78891033]
[1746500750532,157.14964886,144.61,144.59,13.62]
[1746500752135,157.14964886,144.61,144.59,28.40891033]
[1746500754554,138.5,144.61,144.6,14.78891033]
[1746500755719,138.5,144.61,144.6,21.70453965]
[1746500757957,138.5,144.65,144.6,21.70453965]
[1746500758156,138.5,144.66,144.64,14.78891033]
[1746500758444,157.14964886,144.66,144.65,14.78891033]
[1746500763443,138.5,144.66,144.65,14.78891033]
[1746500764736,138.5,144.66,144.65,21.70214918]
[1746500775440,138.5,144.66,144.65,14.78891033]
[1746500776835,18.64964886,144.65,144.64,13.6]
[1746500777043,33.43855919,144.65,144.64,13.6]
[1746500777363,18.64964886,144.65,144.64,13.6]
[1746500782934,40.49395961,144.65,144.64,13.6]
[1746500783241,72.77755961,144.65,144.64,13.6]
[1746500783442,0.14216157,144.64,144.6,13.62]
[1746500783643,18.64964886,144.62,144.6,13.62]
[1746500784162,33.58072076,144.64,144.6,28.40891033]
[1746500784776,18.64964886,144.64,144.62,14.78891033]
[1746500786037,18.64964886,144.64,144.61,14.78891033]
[1746500787033,18.64964886,144.62,144.6,13.62]
[1746500790866,18.64964886,144.62,144.6,28.40891033]
[1746500791068,138.5,144.63,144.61,14.78891033]
[1746500791273,138.5,144.63,144.62,14.78891033]
[1746500792974,138.5,144.63,144.62,21.70358326]
[1746500793971,138.5,144.63,144.62,14.78891033]
[1746500794474,138.5,144.63,144.61,14.78891033]
[1746500795969,138.5,144.63,144.62,14.78891033]
[1746500799374,138.5,144.63,144.62,21.70358326]